Workbook

Sheet Arkusz1
A1: Województwo | B1: Wskaźnik przestępczości ogółem | C1: Stopa bezrobocia | D1: PKB per capita | E1: Nakłady inwestycyjne na 1 mieszkańca
A2: DOLNOŚLĄSKIE | B2: 25.73 | C2: 7.2 | D2: 53,659 | E2: 9,960
A3: KUJAWSKO-POMORSKIE | B3: 17.82 | C3: 12.0 | D3: 39,503 | E3: 5,851
A4: LUBELSKIE | B4: 14.62 | C4: 10.3 | D4: 33,371 | E4: 5,361
A5: LUBUSKIE | B5: 22.38 | C5: 8.6 | D5: 40,639 | E5: 6,207
A6: ŁÓDZKIE | B6: 18.50 | C6: 8.5 | D6: 45,199 | E6: 6,723
A7: MAŁOPOLSKIE | B7: 21.50 | C7: 6.6 | D7: 43,865 | E7: 6,627
A8: MAZOWIECKIE | B8: 20.20 | C8: 7.0 | D8: 77,359 | E8: 12,601
A9: OPOLSKIE | B9: 20.01 | C9: 9.0 | D9: 38,551 | E9: 7,251
A10: PODKARPACKIE | B10: 11.02 | C10: 11.5 | D10: 34,120 | E10: 6,407
A11: PODLASKIE | B11: 14.36 | C11: 10.3 | D11: 34,299 | E11: 6,565
A12: POMORSKIE | B12: 19.93 | C12: 7.1 | D12: 46,913 | E12: 8,372
A13: ŚLĄSKIE | B13: 23.18 | C13: 6.6 | D13: 50,184 | E13: 7,492
A14: ŚWIĘTOKRZYSKIE | B14: 15.12 | C14: 10.8 | D14: 34,633 | E14: 4,586
A15: WARMIŃSKO-MAZURSKIE | B15: 18.76 | C15: 14.2 | D15: 34,514 | E15: 6,572
A16: WIELKOPOLSKIE | B16: 17.74 | C16: 4.9 | D16: 52,844 | E16: 7,985
A17: ZACHODNIOPOMORSKIE | B17: 21.00 | C17: 10.9 | D17: 40,592 | E17: 6,940

Sheet Arkusz2
B1: Tabela przekrojów statystyk opisowych (baza analiza skupień 21_11_23) N=16 (Zmienne zależne nie zawierają BD)
B2: Skupienie | C2: wskaźnik przestępczości o charakterze kryminalnym na 1000 mieszkańców | D2: wskaźnik przestępczości o charakterze gospodarczym na 1000 mieszkańców | E2: wskaźnik przestępczości przeciwko życiu i zdrowiu | F2: przeciwko wolności, wolności sumienia i wyznania | G2: wskaźnik przestępczości przeciwko rodzinie i opiece | H2: stopa bezrobocia | I2: PKB
C3: Średnie | D3: Średnie | E3: Średnie | F3: Średnie | G3: Średnie | H3: Średnie | I3: Średnie
B4: E | C4: 14.42681 | D4: 4.196608 | E4: 0.523086 | F4: 0.858908 | G4: 0.621354 | H4: 7.68 | I4: 46901.2
B5: C | C5: 9.02409 | D5: 2.881296 | E5: 0.443994 | F5: 0.645 | G5: 0.627356 | H5: 10.98 | I5: 35185.2
B6: B | C6: 13.87153 | D6: 3.395035 | E6: 0.633865 | F6: 1.08097 | G6: 0.89779 | H6: 11.4 | I6: 37576.5
B7: D | C7: 12.6915 | D7: 4.460957 | E7: 0.3678 | F7: 0.687607 | G7: 0.566983 | H7: 6.16667 | I7: 58022.67
B8: A | C8: 14.58784 | D8: 3.03062 | E8: 0.51964 | F8: 1.73856 | G8: 0.4459 | H8: 10.9 | I8: 40592
B9: Ogół | C9: 12.35374 | D9: 3.662068 | E9: 0.482886 | F9: 0.842679 | G9: 0.636624 | H9: 9.09375 | I9: 43765.31
B12: E | C12: =C4/$C$9 -> 1.167809101 | D12: =D4/$D$9 -> 1.145966705 | E12: =E4/E$9 -> 1.083249463 | F12: =F4/F$9 -> 1.019258816 | G12: 0.9760140994 | H12: 0.8445360825 | I12: 1.071652411 | J12: umiarkowanie bezpieczne, ale dobre ekonomicznie
B13: C | C13: =C5/$C$9 -> 0.7304743341 | D13: =D5/$D$9 -> 0.7867947837 | E13: =E5/$E$9 -> 0.9194592513 | F13: =F5/F$9 -> 0.7654160125 | G13: 0.9854419563 | H13: 1.20742268 | I13: 0.8039518057 | J13: bezpieczne, ale ekonomicznie słabe
B14: B | C14: 1.122860769 | D14: 0.927081365 | E14: 1.312659717 | F14: =F6/F$9 -> 1.282777902 | G14: 1.410235869 | H14: 1.253608247 | I14: 0.8585909708 | J14: najniebezpieczniejsze skupenie
B15: D | C15: 1.027340708 | D15: 1.218152421 | E15: 0.7616704564 | F15: =F7/F$9 -> 0.8159773769 | G15: 0.8906088994 | H15: 0.6781217869 | I15: 1.325768514 | J15: bezpieczne, ale ekonomicznie bardzo dobre
B16: A | C16: 1.18084402 | D16: 0.8275706513 | E16: 1.076113203 | F16: =F8/F$9 -> 2.063134361 | G16: 0.7004134308 | H16: 1.19862543 | I16: 0.9274925735 | J16: ani bezpieczne, ani ekonomicznie dobre

Sheet Arkusz3
